[Event "1000GM Memorial Day GM Schev 2023"]
[Site "New York"]
[Date "2023.05.27"]
[Round "3.2"]
[White "Lenderman, Aleksandr"]
[Black "Kaliksteyn, Alexander"]
[Result "1-0"]
[ECO "B55"]
[WhiteElo "2572"]
[BlackElo "2373"]
[Annotator "TA"]
[PlyCount "121"]
[EventDate "2023.05.23"]
[EventType "schev"]
[EventCountry "USA"]
[SourceTitle "playchess.com"]
[Source "ChessBase"]
[SourceQuality "1"]
[TimeControl "5400+30"]

{[%evp 9,121,0,0,12,30,22,24,16,25,27,20,25,32,16,20,17,70,0,10,12,25,25,25,25,25,25,41,17,25,29,128,131,102,25,36,25,50,51,51,34,34,27,35,35,35,26,77,66,75,61,69,10,4,18,12,13,163,122,132,123,123,123,121,122,150,0,0,0,0,0,0,0,0,0,0,0,0,0,37,43,72,23,23,24,56,24,201,220,495,235,235,235,225,218,442,408,670,608,6450,4594,5169,5102,6514,6402,29978,5616,5076,5243,5076,5076,4622,4133,1311,1237]} 1. e4 {[%emt 0:11:33]} c5 {[%emt 0:00:10]} 2. Nf3 {[%emt 0:00:08]} d6 {[%emt 0:00:17]} 3. d4 {[%emt 0:00:14]} cxd4 {[%emt 0:00:06]} 4. Nxd4 {[%emt 0:00:03]} Nf6 {[%emt 0:00:06]} 5. Bd3 {[%emt 0:00:04]} Nc6 {[%emt 0:06:26]} 6. Be3 {[%emt 0:00:14] B55: Sicilian: 2...d6 3 d4 cxd4 4 Nxd4 Nf6 5 f3.} e5 {[%emt 0:12:35]} 7. Nxc6 {[%emt 0:04:21]} bxc6 {[%emt 0:00:02]} 8. O-O {[%emt 0:02:24] White has an edge.} Be7 {[%emt 0:03:33]} 9. c4 {[%emt 0:00:21]} O-O {[%emt 0:00:13]} 10. Nc3 {[%emt 0:00:14]} Be6 {[%emt 0:00:54]} 11. Qa4 {[%emt 0:04:21] [#]} Ng4 $146 {[%emt 1:11:38]} ({Predecessor:} 11... Qc7 12. Rac1 Qb7 13. b3 Rfd8 14. Rfd1 a5 15. h3 Nd7 16. Nd5 Bf8 {0-1 Danielyan,V (2295)-Psyk,R (2411) Warsaw Chess op-A 2022 (3)}) 12. Bd2 {[%emt 0:03:43]} Bg5 {[%emt 0:00:00]} (12... Qc7 $11) 13. Qd1 {[%emt 0:04:38]} (13. Bxg5 $14 Qxg5 14. Be2) 13... Rb8 {[%emt 0:00:00]} 14. b3 {[%emt 0:00:43]} Bxd2 {[%emt 0:00:00]} 15. Qxd2 {[%emt 0:00:10]} Qh4 {[%emt 0:00:00][%csl Gg4][%cal Rh4h2]} 16. h3 {[%emt 0:00:08]} Nf6 {[%emt 0:00:00]} 17. Qe3 {[%emt 0:02:14]} Rb7 {[%emt 0:00:00]} 18. Rad1 {[%emt 0:03:43]} Rd7 {[%emt 0:00:00]} 19. Be2 {[%emt 0:05:39]} Nh5 {[%emt 0:00:00] [#]} (19... Rfd8 $11) 20. Bxh5 $1 $16 {[%emt 0:04:19]} Qxh5 {[%emt 0:00:00]} 21. Rd2 {[%emt 0:00:20]} ({White should try} 21. c5 $16) 21... Rfd8 $11 {[%emt 0:00:00]} 22. Rfd1 {[%emt 0:00:40]} g6 {[%emt 0:00:00]} 23. Rd3 {[%emt 0:08:38]} Qh4 {[%emt 0:00:00]} 24. Na4 {[%emt 0:03:26]} Qe7 {[%emt 0:00:00]} 25. c5 {[%emt 0:04:49]} d5 {[%emt 0:00:00]} 26. exd5 {[%emt 0:00:17]} Bxd5 {[%emt 0:00:00]} 27. Nc3 {[%emt 0:00:31]} Qe6 {[%emt 0:00:00]} (27... f6 $11 {remains equal.}) 28. b4 $16 {[%emt 0:02:12]} f5 {[%emt 0:00:00]} 29. a4 {[%emt 0:05:26]} a6 $1 {[%emt 0:00:00]} 30. R3d2 {[%emt 0:03:16]} (30. Nxd5 $14 cxd5 31. b5) 30... f4 $11 {[%emt 0:00:00]} 31. Qe1 {[%emt 0:00:29]} f3 {[%emt 0:00:00]} 32. Nxd5 {[%emt 0:01:29]} Rxd5 {[%emt 0:00:00]} (32... cxd5 $11 {and Black stays safe.} 33. gxf3 Rf8) 33. gxf3 {[%emt 0:01:05]} Rxd2 {[%emt 0:01:42]} 34. Rxd2 {[%emt 0:00:11][%mdl 4096] Endgame KQR-KQR} Rf8 {[%emt 0:00:13] [#]} 35. Kg2 {[%emt 0:02:51]} Rf4 {[%emt 0:00:47][%cal Of4h4]} 36. Rd8+ {[%emt 0:05:53]} Kg7 {[%emt 0:00:17]} 37. Rd6 {[%emt 0:00:51]} (37. Qd2 $16) 37... Qf5 {[%emt 0:00:14]} 38. Qe3 {[%emt 0:04:39]} Qg5+ {[%emt 0:00:21]} 39. Kh2 {[%emt 0:01:24]} Qf5 {[%emt 0:00:02]} 40. Qd2 {[%emt 0:05:27]} Rxf3 {[%emt 0:07:22]} 41. Rd7+ {[%emt 0:00:07]} Kf6 {[%emt 0:00:17]} 42. Qd6+ {[%emt 0:00:11]} Kg5 {[%emt 0:00:10]} 43. Qe7+ {[%emt 0:00:22]} (43. Qxc6 {leads to mate.} Rxf2+) 43... Qf6 {[%emt 0:01:43]} (43... Kh5 $5 44. Qxh7+ Kg5 45. Qe7+ Kh5 46. Qh7+ Kg5 47. Qe7+ Kh5 48. Qh7+ $11) 44. Qxf6+ {[%emt 0:00:21]} Rxf6 $14 {[%emt 0:00:03] KR-KR} 45. Kg2 {[%emt 0:00:50] White is more active.} (45. Kg3 $16) 45... Rf4 $11 {[%emt 0:00:08]} 46. Rb7 {[%emt 0:00:28]} Rc4 {[%emt 0:01:58][%cal Oa6a5]} 47. a5 $1 {[%emt 0:00:22]} ({Don't play} 47. Rxh7 Rxb4 48. Rc7 Rxa4 $11) 47... Kf4 $2 {[%emt 0:01:34]} (47... e4 $11 {and Black is okay.}) 48. Rxh7 $18 {[%emt 0:00:19] Threatening mate with Rh4+.} g5 {[%emt 0:00:09] Prevents Rh4+.} (48... Ke4 49. Rc7 Kd5) 49. Rf7+ {[%emt 0:00:35]} (49. Rh6 $142) 49... Ke4 {[%emt 0:00:11]} 50. Rf6 {[%emt 0:01:15]} Rxb4 {[%emt 0:00:20]} 51. Rxc6 {[%emt 0:00:05]} Rb5 $2 {[%emt 0:00:04]} (51... Kd4 52. Rxa6 Kxc5) 52. Rxa6 {[%emt 0:00:05] Threatens to win with c6.} Rxc5 {[%emt 0:00:04]} (52... Kd5 $142 53. Kf3 Rb3+ 54. Kg4 Kxc5) 53. Ra8 {[%emt 0:00:25] Strongly threatening a6.} Rc3 {[%emt 0:00:38]} 54. a6 {[%emt 0:00:05]} Ra3 {[%emt 0:00:45]} 55. a7 {[%emt 0:00:07] White threatens Kh2 and mate.} Ra1 {[%emt 0:00:36]} 56. Kg3 {[%emt 0:00:26]} Rg1+ {[%emt 0:00:06]} 57. Kh2 {[%emt 0:00:06]} Ra1 {[%emt 0:00:02] White is clearly winning.} 58. Kg2 {[%emt 0:00:19]} Ra3 {[%emt 0:00:46] [#]} 59. f3+ $1 {[%emt 0:00:26][%mdl 512]} Ke3 {[%emt 0:00:07]} 60. Kg3 {[%emt 0:00:06]} Ra4 {[%emt 0:00:20]} 61. Re8 {[%emt 0:00:19] Weighted Error Value: White=0.16 (very precise) /Black=0.38} 1-0

[Event "1000GM Memorial Day GM Schev 2023"]
[Site "New York"]
[Date "2023.05.28"]
[Round "4.1"]
[White "Ostrovskiy, Aleksandr"]
[Black "Sturt, Raven"]
[Result "1/2-1/2"]
[ECO "B51"]
[WhiteElo "2394"]
[BlackElo "2470"]
[Annotator "TA"]
[PlyCount "169"]
[EventDate "2023.05.23"]
[EventType "schev"]
[EventCountry "USA"]
[SourceTitle "playchess.com"]
[Source "ChessBase"]
[SourceQuality "1"]
[TimeControl "5400+30"]

{[%evp 9,169,14,8,7,32,29,34,29,34,43,53,34,63,14,31,27,57,54,51,42,45,34,31,0,-15,0,117,112,139,131,131,110,127,125,113,111,176,176,187,88,76,93,112,112,103,120,114,123,100,99,118,0,0,0,0,0,11,-5,-7,-47,-45,-91,-80,-163,-151,-134,0,0,0,0,0,0,0,0,0,0,0,0,0,0,0,0,0,-7,-5,-5,-5,-144,0,0,0,0,0,0,0,0,0,0,0,0,0,0,0,0,0,0,0,0,0,0,0,0,0,0,0,0,0,0,0,0,0,0,0,0,0,0,0,0,0,0,0,0,0,0,0,6,14,0,0,0,0,0,0,0,0,0,0,0,0,0,0,0,8,0,0,0,0,0,29973,29976,29975,29974]} 1. e4 {[%emt 0:08:22]} c5 {[%emt 0:00:02]} 2. Nf3 {[%emt 0:00:37]} d6 {[%emt 0:00:05]} 3. Bb5+ {[%emt 0:00:41]} Nd7 {[%emt 0:00:05]} 4. a4 {[%emt 0:00:43][%cal Ba2a4,Ba4a5,Ba5b6][%mdl 32]} Ngf6 {[%emt 0:01:09]} 5. Nc3 {[%emt 0:01:08]} a6 {[%emt 0:03:03]} 6. Be2 {[%emt 0:01:16] B51: Sicilian: Moscow Variation (3 Bb5+) without 3...Bd7.} g6 {[%emt 0:02:36]} 7. a5 {[%emt 0:05:48] 7.a5 scores better than 7.0-0.} b5 {[%emt 0:02:54]} 8. axb6 {[%emt 0:00:18] White is slightly better.} Bb7 {[%emt 0:00:05]} 9. d3 {[%emt 0:01:11]} Bg7 {[%emt 0:00:21]} 10. O-O {[%emt 0:00:10]} O-O {[%emt 0:01:31]} 11. Qd2 {[%emt 0:12:30] [#]} (11. Nd2 $14) 11... e6 $146 {[%emt 0:20:36]} ({Predecessor:} 11... Nxb6 12. Qg5 c4 13. Qh4 cxd3 14. cxd3 h5 15. d4 Qd7 16. h3 Rfc8 17. Re1 a5 {1-0 Gumularz,S (2539)-Vokhidov,S (2536) Wch Rapid Warsaw 2021 (9)}) 12. Qf4 {[%emt 0:04:25]} Ne8 {[%emt 0:03:03]} 13. Qg3 {[%emt 0:03:06]} Nxb6 {[%emt 0:04:46]} 14. Bg5 {[%emt 0:04:56]} Qd7 {[%emt 0:05:09]} 15. Nd2 {[%emt 0:10:10]} Nc7 {[%emt 0:02:29]} 16. Nc4 {[%emt 0:06:30]} (16. h4 $14) 16... Nxc4 {[%emt 0:01:45]} 17. dxc4 {[%emt 0:00:10]} d5 {[%emt 0:10:29]} (17... Rfb8 $11) 18. exd5 {[%emt 0:13:36]} exd5 {[%emt 0:00:23]} 19. Na4 {[%emt 0:00:22] White is more active.} Rae8 {[%emt 0:03:50]} 20. Bf3 {[%emt 0:02:00]} Be5 {[%emt 0:01:28]} 21. Qh4 {[%emt 0:02:29]} (21. Nxc5 $2 Qc6 22. Qh4 Qxc5 $19) 21... Ne6 {[%emt 0:09:06][%cal Bc7e6,Be6d4,Bd4b3,Bb3d2][%mdl 32]} 22. Bh6 {[%emt 0:09:15]} Bg7 {[%emt 0:00:52]} (22... Ng7 $16) 23. Bxg7 $18 {[%emt 0:00:31]} (23. Nb6 $6 Qd6 24. Bxg7 (24. Nxd5 Nd4 $14) 24... Kxg7 25. Nxd5 Nd4 $14) 23... Kxg7 {[%emt 0:00:06]} 24. Bxd5 {[%emt 0:05:10]} (24. Nb6 $6 Qd6 25. Nxd5 Nd4 $14) (24. cxd5 $1 $18 {and the rest is easy.} Nd4 25. c4 (25. Nxc5 Nxf3+ 26. gxf3 Qxd5 $11)) 24... Bxd5 $16 {[%emt 0:00:26]} 25. Nb6 {[%emt 0:00:11][%cal Ba4b6,Bb6d5,Bd5f4][%mdl 96] Discovered Attack} (25. cxd5 Qxd5 26. Nc3 Qf5 $11) 25... Qd6 {[%emt 0:01:54] aiming for ...Bxg2.} 26. Nxd5 {[%emt 0:00:16]} Nd4 {[%emt 0:01:27]} 27. c3 {[%emt 0:01:01]} Nb3 {[%emt 0:02:01]} 28. Rad1 {[%emt 0:02:56]} Re2 {[%emt 0:01:28]} 29. Nf4 {[%emt 0:00:57]} Rd2 {[%emt 0:01:16] [#]} 30. Rxd2 {[%emt 0:01:52]} (30. Rde1 $1 $16) 30... Nxd2 $11 {[%emt 0:00:06]} 31. Re1 {[%emt 0:00:52]} Rb8 {[%emt 0:00:16]} 32. Qg5 {[%emt 0:01:56]} Ne4 {[%emt 0:06:08][%mdl 64] Deflection, Back Rank} 33. Qh4 $132 {[%emt 0:00:48][%mdl 2048] White is fighting back} (33. Rxe4 $2 Qd1+) 33... Nf6 {[%emt 0:02:54] Against Nd5} 34. h3 {[%emt 0:00:43]} Rxb2 {[%emt 0:00:29]} 35. Qg5 {[%emt 0:00:30]} (35. Qg3 $15 {feels stronger.} Rd2 36. Qe3) 35... Qd2 {[%emt 0:03:59]} 36. Qe5 {[%emt 0:00:04]} (36. Re7 $17 Qd1+ 37. Kh2) 36... Qxf2+ $19 {[%emt 0:01:02]} 37. Kh2 {[%emt 0:00:01] [#]} Kh6 {[%emt 0:00:49]} (37... h5 $1 $17 {...a5 is the strong threat.} 38. Ra1 h4) 38. Qxf6 $11 {[%emt 0:01:23] White wants to mate with Re7.} Qxe1 {[%emt 0:00:06][%mdl 4096] Endgame KQR-KQN} 39. Nd3 {[%emt 0:00:20] The board is on fire.} Qd2 {[%emt 0:01:09][%csl Gb2,LRd3,LRg2][%cal Rd2g2]} 40. Nxb2 {[%emt 0:00:07]} Qxb2 {[%emt 0:00:02]} 41. Qxf7 {[%emt 0:00:33] KQ-KQ} Qb8+ {[%emt 0:01:06]} 42. Kh1 {[%emt 0:00:15]} Qd6 {[%emt 0:01:05]} 43. Qf3 {[%emt 0:00:53]} a5 {[%emt 0:02:57]} 44. Qa8 {[%emt 0:00:22]} Qc7 {[%emt 0:00:08]} 45. Qe8 {[%emt 0:00:51]} Kg5 {[%emt 0:00:16]} 46. Qb5 {[%emt 0:00:18]} Kf4 {[%emt 0:00:15]} 47. Qe8 {[%emt 0:00:32]} Qe5 {[%emt 0:01:52]} 48. Qa8 {[%emt 0:00:40]} (48. Qf7+ $11 Qf5 49. Qe7) 48... Ke3 {[%emt 0:00:42]} (48... Qxc3 $17 49. Qd5 (49. Qf8+ $2 Ke4 $19) 49... Qa1+ 50. Kh2 Qd4 51. Qf3+ Ke5) 49. Qf3+ $1 {[%emt 0:00:35]} (49. Qxa5 Kf2 50. Qa2+ Qe2 $19) 49... Kd2 {[%emt 0:00:09][%cal Oe5f5] And now ...Qf5! would win.} 50. Qd5+ $1 {[%emt 0:00:08]} Qxd5 $1 {[%emt 0:00:13]} (50... Kxc3 51. Qxe5+ Kxc4 52. Qe6+ Kc3 53. Qf6+ Kd3 54. Qd6+ Ke4 55. Qe6+ Kd4 56. Qd7+ Ke4 57. Qxh7) 51. cxd5 {[%emt 0:00:01] d6 would kill now. KP-KP} a4 {[%emt 0:00:26][%cal Oa4a3]} (51... Kxc3 $2 52. d6 $18) 52. d6 {[%emt 0:00:01] Intending d7 and mate.} a3 {[%emt 0:00:03][%cal Oa3a2] ( -> ...a2!)} (52... Kxc3 $2 53. d7 $18) 53. d7 {[%emt 0:00:02]} a2 {[%emt 0:00:03]} 54. d8=Q+ {[%emt 0:00:05]} (54. d8=B a1=Q+ 55. Kh2 Qxc3 56. Bg5+ Ke2 57. Bh6 Qe5+ 58. Kg1 Qg3) 54... Kc2 {[%emt 0:00:07]} 55. Qa5 {[%emt 0:01:14][%csl LRa2,LRc5]} Kb2 {[%emt 0:00:01]} 56. Qb5+ {[%emt 0:00:06]} Kc2 $1 {[%emt 0:00:17]} 57. Qe2+ {[%emt 0:01:01]} Kb1 {[%emt 0:00:08]} 58. Qe1+ {[%emt 0:01:18]} Kb2 {[%emt 0:00:05]} 59. Qf2+ {[%emt 0:00:32]} Kb3 $1 {[%emt 0:00:05]} 60. Qf1 {[%emt 0:00:57] White threatens Qa1 and mate.} Kb2 {[%emt 0:00:05] Dodges Qa1+} 61. Qb5+ {[%emt 0:00:25]} Kc2 $1 {[%emt 0:00:10]} 62. Qa6 {[%emt 0:00:13]} Kb2 {[%emt 0:09:52]} 63. Qb7+ {[%emt 0:00:20]} Kc2 {[%emt 0:00:00]} 64. Qa7 {[%emt 0:00:23]} Kb2 {[%emt 0:00:00]} 65. Qb8+ {[%emt 0:00:44]} Kc2 {[%emt 0:00:00]} 66. Qa8 {[%emt 0:00:27]} Kb2 {[%emt 0:00:00]} 67. Qb7+ {[%emt 0:00:04]} Kc2 {[%emt 0:00:00]} 68. Qe4+ {[%emt 0:00:03]} Kb2 {[%emt 0:00:00]} 69. Qe2+ {[%emt 0:00:30]} Kb1 {[%emt 0:00:00]} 70. Qe1+ {[%emt 0:01:55]} Kb2 {[%emt 0:00:00]} 71. Qf2+ {[%emt 0:00:22]} Kb3 $1 {[%emt 0:00:00]} 72. Qg1 {[%emt 0:00:13]} Kb2 {[%emt 0:00:00] Prevents Qa1+.} 73. Qxc5 {[%emt 0:00:09] Threatening mate with Qb4+.} a1=Q+ {[%emt 0:05:30] KQ-KQ} 74. Kh2 {[%emt 0:00:07] Hoping for Qf2+.} Qf1 $1 {[%emt 0:00:00] Prevents Qf2+.} 75. Qd4 {[%emt 0:01:11] Threatens to win with c4+.} Kb3 $1 {[%emt 0:00:00]} 76. Qb4+ {[%emt 0:01:06]} Kc2 {[%emt 0:00:00]} 77. Qd4 {[%emt 0:00:26] Black must now prevent c4.} Kb3 $1 {[%emt 0:00:00]} 78. Kg3 {[%emt 0:00:08][%cal Oc3c4]} Qe1+ {[%emt 0:00:00]} 79. Kf4 {[%emt 0:00:17]} Qf1+ {[%emt 0:00:00]} 80. Kg3 {[%emt 0:00:30][%cal Oc3c4]} Qe1+ {[%emt 0:00:00]} 81. Kf4 {[%emt 0:01:02] Qd5+ would be deadly.} Qf1+ {[%emt 0:00:00]} 82. Kg3 {[%emt 0:00:17][%cal Oc3c4]} Qe1+ {[%emt 0:04:30]} 83. Qf2 {[%emt 0:00:30]} Qxc3+ $2 {[%emt 0:00:30][%mdl 8192]} (83... Qe6 $11) 84. Qf3 {[%emt 0:01:23]} h6 85. Kf4 {[%mdl 32768] What a fight!   Weighted Error Value: White=0.15 (very precise) /Black=0.15 (very precise) . An unexpected result.} 1/2-1/2

[Event "1000GM Memorial Day GM Schev 2023"]
[Site "New York"]
[Date "2023.05.28"]
[Round "4.2"]
[White "Kaliksteyn, Alexander"]
[Black "Lenderman, Aleksandr"]
[Result "1/2-1/2"]
[WhiteElo "2373"]
[BlackElo "2572"]
[Annotator "TA"]
[PlyCount "37"]
[EventDate "2023.05.23"]
[EventType "schev"]
[EventCountry "USA"]
[SourceTitle "playchess.com"]
[Source "ChessBase"]
[SourceQuality "1"]
[TimeControl "5400+30"]

{[%evp 14,16,0,0,0]} 1. c4 {[%emt 0:00:03]} c5 {[%emt 0:00:03]} 2. Nf3 {[%emt 0:02:32]} b6 {[%emt 0:00:28]} 3. b3 {[%emt 0:01:15]} Bb7 {[%emt 0:00:58]} 4. Bb2 {[%emt 0:00:07]} Nf6 {[%emt 0:01:56]} 5. Nc3 {[%emt 0:06:46]} e6 {[%emt 0:02:13]} 6. e3 {[%emt 0:00:51]} Be7 {[%emt 0:00:14]} 7. Be2 {[%emt 0:00:12]} O-O {[%emt 0:00:13]} 8. O-O {[%emt 0:00:16]} d5 {[%emt 0:01:42] [#] An uneventful encounter.  A30: Symmetrical English: Double Fianchetto and Hedgehog.} {Predecessor:} 9. d4 $146 cxd4 10. Nxd4 dxc4 11. Bxc4 Nc6 12. Nxc6 Bxc6 13. Qe2 Qc8 14. Rac1 a6 15. e4 Qb7 16. Bd3 Rfd8 17. Rfd1 b5 18. f3 Nd7 19. Qe1 {½-½ Tomashevsky,E (2706)-Kramnik,V (2753) Razuvaev Memorial online blitz 2020 (7)} 1/2-1/2

[Event "1000GM Memorial Day GM Schev 2023"]
[Site "New York"]
[Date "2023.05.28"]
[Round "5.1"]
[White "Ostrovskiy, Aleksandr"]
[Black "Lenderman, Aleksandr"]
[Result "1-0"]
[ECO "C54"]
[WhiteElo "2394"]
[BlackElo "2572"]
[Annotator "TA"]
[PlyCount "83"]
[EventDate "2023.05.23"]
[EventType "schev"]
[EventCountry "USA"]
[SourceTitle "playchess.com"]
[Source "ChessBase"]
[SourceQuality "1"]
[TimeControl "5400+30"]

{[%evp 11,83,25,15,16,27,28,25,22,40,0,8,8,35,0,26,2,26,17,20,0,7,0,36,0,0,-7,-6,-4,-20,-18,0,0,0,0,13,38,96,95,79,80,72,82,160,162,148,174,142,145,197,202,266,237,255,246,401,410,442,432,731,727,662,689,566,545,524,518,694,555,639,633,606,537,700,608]} 1. e4 {[%emt 0:10:40]} e5 {[%emt 0:19:21]} 2. Nf3 {[%emt 0:00:07]} Nc6 {[%emt 0:00:04]} 3. Bc4 {[%emt 0:03:03]} Bc5 {[%emt 0:00:15]} 4. O-O {[%emt 0:00:52]} Nf6 {[%emt 0:00:39]} 5. d3 {[%emt 0:00:19]} d6 {[%emt 0:00:16]} 6. c3 {[%emt 0:00:44]} a6 {[%emt 0:00:26] 6...a5 is setting a new trend.} 7. a4 {[%emt 0:01:08] C54: Giuoco Piano: 4 c3 Nf6, main lines with 5 d4 and 5 d3.} Ba7 {[%emt 0:00:15]} 8. Nbd2 {[%emt 0:00:48][%cal Bb1d2,Bd2f1,Bf1e3][%mdl 32]} h6 {[%emt 0:00:36]} 9. Re1 {[%emt 0:03:07] White has an edge.} g5 {[%emt 0:00:29]} 10. Nf1 {[%emt 0:10:19]} (10. b4 $5) 10... g4 {[%emt 0:00:59]} 11. N3d2 {[%emt 0:00:48]} h5 {[%emt 0:01:16]} 12. Ne3 {[%emt 0:01:25]} (12. Nb3 {is interesting.} Be6 13. Bg5 Rg8 14. Bh4) 12... h4 {[%emt 0:02:46][%cal Og4g3]} 13. Ndf1 $1 {[%emt 0:02:38]} Rg8 {[%emt 0:02:40]} 14. b4 {[%emt 0:07:28]} Be6 {[%emt 0:07:15]} 15. Bxe6 {[%emt 0:05:28]} fxe6 {[%emt 0:00:55]} 16. b5 {[%emt 0:00:53]} Ne7 {[%emt 0:01:01] [#]} 17. bxa6 $146 {[%emt 0:04:53]} ({Predecessor:} 17. d4 exd4 18. cxd4 Qd7 19. Rb1 axb5 20. Rxb5 c6 21. Rb3 O-O-O 22. Nc4 d5 23. Na5 {1-0 Demchenko,A (2672)-Bologan,V (2600) EU-ch 19th Batumi 2018 (9)}) 17... bxa6 {[%emt 0:00:20]} 18. d4 {[%emt 0:04:19]} Qd7 {[%emt 0:07:06] aiming for ...Qc6.} (18... Nxe4 $2 19. Nxg4 Nxc3 20. Nf6+ Kf7 21. Qf3 Bxd4 22. Nxg8+ Kxg8 23. Ra3 $18) 19. Qd3 {[%emt 0:11:12]} Nc6 {[%emt 0:09:57][%cal Re5d4]} 20. d5 {[%emt 0:03:38]} Ne7 {[%emt 0:01:02]} 21. dxe6 {[%emt 0:05:27]} Qxe6 {[%emt 0:00:14]} 22. Qxa6 {[%emt 0:01:16]} Kf7 {[%emt 0:06:38] [#] Strongly threatening ...Bxe3.} 23. Qd3 {[%emt 0:03:40]} g3 {[%emt 0:08:40]} 24. hxg3 $16 {[%emt 0:03:12] Black is on the road to losing.} h3 {[%emt 0:01:51]} 25. Qc4 {[%emt 0:03:41]} (25. Nf5 {looks sharper.} Rh8 26. Bg5 Nxe4 27. Nh6+) 25... Qxc4 {[%emt 0:04:10]} 26. Nxc4 {[%emt 0:00:03]} h2+ {[%emt 0:00:04]} 27. Nxh2 {[%emt 0:00:48]} Rxg3 {[%emt 0:00:02] [#]} 28. Be3 $1 {[%emt 0:01:05]} Bxe3 {[%emt 0:00:44]} 29. Nxe3 {[%emt 0:00:14]} Rg6 {[%emt 0:00:02]} (29... Rgg8 $16 {was necessary.} 30. Ra3 Ra5) 30. f3 $18 {[%emt 0:01:11]} Nh5 {[%emt 0:00:11]} 31. Reb1 {[%emt 0:04:43] Threatens to win with Rb7.} Nf4 {[%emt 0:00:07]} 32. Rb7 {[%emt 0:02:57]} Ne2+ $2 {[%emt 0:02:00]} (32... Ne6 33. a5 Ke8) 33. Kf2 {[%emt 0:00:02]} Nxc3 {[%emt 0:00:06]} 34. Rc1 {[%emt 0:03:16] White is clearly winning.} ({Less strong is} 34. Rxc7 Rxa4 35. Rxa4 Nxa4 $18) 34... d5 {[%emt 0:00:18]} (34... Nxa4 $142 35. Rcxc7 (35. Rbxc7 Nc5 $16) 35... Re8) 35. Rxc3 {[%emt 0:00:51]} d4 {[%emt 0:00:01]} 36. Rcxc7 {[%emt 0:00:13]} dxe3+ {[%emt 0:00:05]} 37. Kxe3 {[%emt 0:00:04]} Re6 {[%emt 0:00:04]} 38. Ra7 {[%emt 0:00:38]} Rb8 {[%emt 0:00:07]} 39. Rcb7 {[%emt 0:00:42]} Rc8 {[%emt 0:00:04]} 40. Ng4 {[%emt 0:00:08]} Kf8 {[%emt 0:00:04]} 41. Rc7 {[%emt 0:00:23]} Rb8 {[%emt 0:00:09]} 42. Kf2 {[%emt 0:01:11] Weighted Error Value: White=0.13 (very precise) /Black=0.32} 1-0

[Event "1000GM Memorial Day GM Schev 2023"]
[Site "New York"]
[Date "2023.05.28"]
[Round "5.2"]
[White "Kaliksteyn, Alexander"]
[Black "Rohde, Michael"]
[Result "1/2-1/2"]
[ECO "A30"]
[WhiteElo "2373"]
[BlackElo "2339"]
[Annotator "TA"]
[PlyCount "42"]
[EventDate "2023.05.23"]
[EventType "schev"]
[EventCountry "USA"]
[SourceTitle "playchess.com"]
[Source "ChessBase"]
[SourceQuality "1"]
[TimeControl "5400+30"]

{[%evp 25,29,3,2,1,27,8]} 1. c4 {[%emt 0:00:03]} c5 {[%emt 0:03:08]} 2. Nf3 {[%emt 0:00:14]} Nf6 {[%emt 0:01:18]} 3. Nc3 {[%emt 0:00:12]} e6 {[%emt 0:01:42]} 4. g3 {[%emt 0:00:46]} b6 {[%emt 0:00:12]} 5. Bg2 {[%emt 0:00:36]} Bb7 {[%emt 0:00:04]} 6. O-O {[%emt 0:00:09]} a6 {[%emt 0:00:59]} 7. b3 {[%emt 0:00:58]} Be7 {[%emt 0:01:13]} 8. Bb2 {[%emt 0:00:36]} O-O {[%emt 0:00:36]} 9. d4 {[%emt 0:00:40]} cxd4 {[%emt 0:00:21]} 10. Nxd4 {[%emt 0:00:12]} Bxg2 {[%emt 0:00:37]} 11. Kxg2 {[%emt 0:00:08]} Qc7 {[%emt 0:00:24]} 12. e3 {[%emt 0:06:02]} Nc6 {[%emt 0:06:22]} 13. Nxc6 {[%emt 0:06:15]} Qxc6+ {[%emt 0:00:23]} 14. Qf3 {[%emt 0:00:06] A30: Symmetrical English: Double Fianchetto and Hedgehog.} Rfc8 {[%emt 0:01:40]} 15. Rfd1 {[%emt 0:00:27] [#] An uneventful encounter.} {Predecessor:} Rab8 $146 16. a4 d6 17. Rab1 Nd7 18. Ba3 Nc5 19. Qxc6 Rxc6 20. Ne2 Rc7 21. Nd4 g6 {½-½ Vidarte Morales,A (2350)-Marin,M (2545) Sitges op 1996 (9)} 1/2-1/2

[Event "1000GM Memorial Day GM Schev 2023"]
[Site "New York"]
[Date "2023.05.29"]
[Round "6.1"]
[White "Lenderman, Aleksandr"]
[Black "Ostrovskiy, Aleksandr"]
[Result "1-0"]
[ECO "D12"]
[WhiteElo "2572"]
[BlackElo "2394"]
[Annotator "TA"]
[PlyCount "43"]
[EventDate "2023.05.23"]
[EventType "schev"]
[EventCountry "USA"]
[SourceTitle "playchess.com"]
[Source "ChessBase"]
[SourceQuality "1"]
[TimeControl "5400+30"]

{[%evp 12,43,31,21,28,19,30,23,17,16,32,30,40,0,0,-2,40,41,47,12,60,43,54,33,74,25,15,31,18,6,25,29,52,31]} 1. d4 {[%emt 0:00:03]} d5 {[%emt 1:31:00]} 2. c4 {[%emt 0:00:03]} c6 {[%emt 0:00:00]} 3. Nf3 {[%emt 0:02:00]} Nf6 {[%emt 0:00:00]} 4. e3 {[%emt 0:00:08]} Bf5 {[%emt 0:00:00]} 5. Nc3 {[%emt 0:00:08]} e6 {[%emt 0:00:00]} 6. Nh4 {[%emt 0:00:05]} Be4 {[%emt 0:00:00]} 7. f3 {[%emt 0:00:23]} Bg6 {[%emt 0:00:00] D12: Slav Defence: 3 Nf3 Nf6 4 e3 Bf5.} 8. Bd2 {[%emt 0:01:56]} Be7 {[%emt 0:00:00] 8...Be7 is better than 8...Nbd7.} 9. Nxg6 {[%emt 0:00:31]} hxg6 {[%emt 0:00:00] White has an edge.} 10. Qc2 {[%emt 0:00:06]} Qc7 {[%emt 0:00:00] [#]} 11. g3 $146 {[%emt 0:08:56]} ({Predecessor:} 11. O-O-O Rxh2 12. Rxh2 Qxh2 13. Qb3 Qc7 14. Kb1 Nbd7 15. cxd5 Nxd5 16. Nxd5 exd5 17. e4 {1-0 Matlakov,M (2671)-Vallejo Pons,F (2711) Chess.com Rapid CGC KO 2022 (1.2)}) 11... a6 {[%emt 0:00:00]} 12. O-O-O {[%emt 0:03:57]} dxc4 {[%emt 0:00:00]} 13. Bxc4 {[%emt 0:00:42]} Nbd7 {[%emt 0:00:00]} 14. e4 {[%emt 0:01:09]} b5 {[%emt 0:00:00]} 15. Be2 {[%emt 0:00:19]} (15. Bxe6 {feels hotter.} fxe6 16. e5 Kf7 17. exf6 gxf6 18. h4) 15... Rc8 {[%emt 0:00:00]} (15... c5 $11 {is more appropriate.} 16. Bf4 Qb7) 16. Kb1 $14 {[%emt 0:02:00]} Qb7 {[%emt 0:00:00]} 17. Be3 {[%emt 0:14:02]} c5 {[%emt 0:00:00] [#]} 18. d5 {[%emt 0:01:49]} (18. e5 $1 $16 {[%cal Re5f6]} Nd5 19. Nxd5 exd5 20. dxc5) 18... exd5 $11 {[%emt 0:00:00]} 19. Nxd5 {[%emt 0:00:36]} Nxd5 {[%emt 0:00:00]} 20. Rxd5 {[%emt 0:00:18]} c4 {[%emt 0:00:00]} 21. h4 {[%emt 0:02:46]} Nf6 {[%emt 0:00:00]} 22. Rdd1 {[%emt 0:01:17] Weighted Error Value: White=0.14 (very precise) /Black=0.14 (very precise)} 1-0